Workbook

Sheet Costo horario
A1: CALCULO DEL COSTO HORARIO TOTAL DE CARGADOR SOBRE ORUGAS D6M-XL
A26: TRACTOR ORGUAS D6M-XL
A32: 1.- DATOS GENERALES DE LA MAQUINA
A34: Valor de Adquisición (Va) = | D34: S/. 726,712.00 | E34: (Sin I.G.V)
A35: Vida Economica Útil (VEU) = | D35: n= | E35: 5 | F35: años, | G35: 2000 | H35: horas semanales = | J35: =+G35*E35 -> 10,000 | K35: horas
A36: Valor de Rescate (Vr) = | D36: 25 | E36: del Va = | F36: =+D36/100*D34 -> S/. 181,678.00
A37: Potencia = | D37: 200 | E37: HP
A38: Capacidad = | E38: kg
A39: Capacidad de cucharon = | D39: 15 | E39: m3
A41: 2.- CALCULO DEL COSTO HORARIO DE POSESIÓN (DEPRECIACION + INTERES DE CAPITAL INVERTIDO + IMPUESTOS, SEGUROS Y ALMACENAJE)
A43: * | B43: Costo horario de la Depreciación
B45: Depreciación = | G45: =+D34-F36 -> S/. 545,034.00
G46: =+E35 -> 5
B48: Depreciación = | F48: =+G45/G46 -> S/. 109,006.80 | G48: / año
B49: Depreciación = | F49: =+F48 -> S/. 109,006.80 | G49: 2000 | H49: horas
B50: Depreciación = | F50: =+F49/G49 -> 54.5034 | G50: / hora
A52: * | B52: Costo horario del Interés de Capital Invertido
B54: Interés del Capital Invertido =
B57: Cálculo de la Inversion Media Anual (IMA)
B59: Cálculo de la Inversion Media Anual (IMA) = | H59: =+(D34*(E35+1)+F36*(E35-1))/(2*E35) -> S/. 508,698.40 | I59: / año
B62: Interés de Capital Invertido = | F62: = | G62: =+H59 -> S/. 508,698.40 | H62: / año x 0.2285
G63: 2000 | H63: horas
B66: Interés de Capital Invertido = | F66: = | G66: =+G62*0.2285/G49 -> S/. 58.12 | H66: / hora
A69: * | B69: Costo horario de los Seguros, Impuestos y Almacenaje
D71: Seguros : | F71: 2.5%
D72: Impuestos : | F72: 2.0%
D73: Almacenaje : | F73: 1.0%
D74: TOTAL : | F74: =+F71+F72+F73 -> 5.5%
B76: La sumatoria de las tasas promedio las aplicaremos sobre la Inversino Media Anual
B78: Seguros, Impuestos = | F78: = | G78: =+G62 -> S/. 508,698.40 | H78: / años x 5.5%
B79: y Almacenaje | G79: 2000 | H79: horas
B82: Seguros, Impuestos = | D82: =+(G78*F74)/G35 -> S/. 13.99 | E82: / hora
B83: y Almacenaje
B86: Depreciación = | E86: =+F50 -> S/. 54.50 | F86: =+H66 -> / hora
B87: Intereses = | E87: =+G66 -> S/. 58.12 | F87: =+H66 -> / hora
B88: Seguros, impuestos y almacenaje = | E88: =+D82 -> S/. 13.99 | F88: =+H66 -> / hora
B89: Total Costo Horario de Posesión = | E89: =+E86+E87+E88 -> S/. 126.61 | F89: =+F88 -> / hora
A92: * | B92: CALCULO DE COSTO HORARIO DE PRODUCCION (MANTENIMIENTO Y REPARACION +
B93: COMBUSTIBLE + LUBRICANTES + FILTROS + GRASAS + PIEZAS DE DESGASTE +
B94: HERRAMIENTAS DE CORTE + NEUMATICOS + OPERADOR DE EQUIPO ESPECIALIZADO)
A96: Datos generales
A98: Combustibles:
A99: Consumo de Petróleo (para equipo nuevo) : | E99: 3.5 | F99: gal/hora
A100: Lubricantes
A101: Consumo de Aceite Motor Grado 40 : | E101: 0.035 | F101: =+F99 -> gal/hora
A102: Consumo de Aceite Caja de cambio grado 140 : | E102: 0.00435 | F102: =+F101 -> gal/hora
A103: Consumo de Aceite Toma fuerza, reductor, direccion; grado 140 | E103: 0.0026 | F103: gal
A104: Consumo de Aceite Direccion : | E104: 0.001 | F104: =+F102 -> gal/hora
A105: Grasa : | E105: 0.22 | F105: lib/hora
A106: Refrigerante | D106: : | E106: 0.002 | F106: =+F104 -> gal/hora
A108: Filtros:
A109: Filtros | D109: : | E109: 20 | F109: % (combustible + lubricante)
A111: Neumáticos:
A112: Neumáticos: | D112: : | E112: 0 | F112: unidades
A113: Vida Útil de cada unidad | D113: : | E113: 8000 | F113: horas (condiciones severas)
D114: :
A115: Operador:
A116: Operador de equipo pesado | D116: : | E116: 1.5
A118: * | B118: Cálculo del costo de Mantenimiento y Reparación (C.M.R)
B120: C.M.R = | C120: Costo de Mano de Obra + Costo de Reparaciones
B122: Para determinar ambos costos se calcula previamente el Costo de Mantenimiento:
B124: Costo de mantenimiento = | E124: 90% | F124: del valor de adquisición
D125: = | E125: =+E124*D34 -> S/. 654,040.80
B127: a). Costo de Mano de Obra = | E127: 25% | F127: x
B129: Para determinar ambos costos se calculara previamente el costo de mantenimiento:
B131: Costo de Mantenimiento: | E131: = 90% del Valor de Adquisición
E132: =90/100*D34 -> S/. 654,040.80
B135: a) Costos de Mano de Obra | E135: = 25% x Costo de Mantenimiento/ V.E.U.
E136: =0.25*E132 -> S/. 163,510.20 | F136: =+J35 -> 10,000 | G136: horas
E137: =+E136/F136 -> S/. 16.35 | F137: hora
B139: b) Costo de Reparaciones: | E139: = 75% x Costo de Mantenimiento/ V.E.U.
E140: =0.75*E125 -> S/. 490,530.60 | F140: =+F136 -> 10,000 | G140: horas
E141: =+E140/F140 -> S/. 49.05 | F141: hora
B143: costo de mantenimiento y reparación: | E143: Costo de Mano de Obra + Costo de Reparaciones
B144: costo de mantenimiento y reparación: | E144: =+E137 -> S/. 16.35 | F144: /hora | G144: + | H144: =+E141 -> S/. 49.05 | I144: /hora
B145: costo de mantenimiento y reparación: | E145: =+H144+E144 -> 65.40 | F145: /hora
B147: Cotizaciones
B148: Galón de petróleo ( galón): | F148: S/= | G148: 9.58 | H148: sin I.G.V.
B149: Galón de aceite Motor Grado 40 ( galón): | F149: S/= | G149: 31.09 | H149: sin I.G.V.
B150: Aceite Caja de cambio; grado 140 | F150: S/= | G150: 33.96 | H150: sin I.G.V.
B151: Aceite Toma fuerza, reductor, dirección, grado 140: | F151: S/= | G151: 33.96 | H151: sin I.G.V.
B152: Aceite Dirección: | F152: S/= | G152: 38.55 | H152: sin I.G.V.
B153: Grasas (libra): | F153: S/= | G153: 4.67 | H153: sin I.G.V.
B154: Refrigerante (unidad): | F154: S/= | G154: 35.01 | H154: sin I.G.V.
B155: Neumaticos( unidad): | F155: S/= | G155: 0 | H155: c/u sin I.G.V
B156: Operarío de Construcción Civil: | F156: S/= | G156: 12.42 | H156: H-H
B158: Cálculo del Costo del Combustible
B159: Combustible ( Petróleo):
B160: Combustible total: | F160: S/= | G160: =+E99*G148 -> 33.53 | H160: /hora
B162: Cálculo del costo de los Lubricantes:
B163: Aceite Motor Grado 40 (galón): | F163: S/= | G163: =+E101*G149 -> 1.09 | H163: /hora
B164: Aceite Caja de Cambio; grado 140: | F164: S/= | G164: =+E102*G150 -> 0.15 | H164: /hora
B165: Aceite Toma fuerza, reductor, dirección; grado : | F165: S/= | G165: =+E103*G151 -> 0.09 | H165: /hora
B166: Aceite Dirección: | F166: S/= | G166: =+E104*G152 -> 0.04 | H166: /hora
B167: Refrigerantes: | F167: S/= | G167: =+E106*G154 -> 0.07 | H167: /hora
B168: Lubricantes Total: | F168: S/= | G168: =+SUM(G163:G167) -> 1.43 | H168: /hora
B170: Cálculo del Costo de los Filtros:
B171: Filtros : | G171: 20% | H171: (combustible +lubricante)
B172: Filtros Total: | F172: S/= | G172: =0.2*(G160+G168) -> 6.99 | H172: /hora
B174: Cálculo del Costo de las Grasas:
B175: Grasas:
B176: GrasasTotal: | F176: S/= | G176: =+E105*G153 -> 1.03 | H176: /hora
B178: Cálculo del Costo de las Piezas de Desgaste: | F178: no tiene
B180: Cálculo del Coste de las Herramientas de Corte: | F180: no tiene
B182: Cálculo del costo de los Neumaticos:
B183: Neumaticos: | F183: = | G183: Costo de los neumaticos / vida útil de la llanta
B184: Neumaticos Total: | F184: S/= | G184: =+E112*G155/E113 -> 0 | H184: /hora
B186: Cálculo del Costo del Operador Especializado:
B187: Operador Especializado: | F187: = | G187: 1.5 (costo de H-H de ope.de construccion civil)
B188: Operador Especializado: | F188: S/= | G188: =1.5*G156 -> 18.63
B191: Mantenimiento y reparación: | E191: S/= | F191: =+E145 -> 65.40 | G191: /hora
B192: Combustible: | E192: S/= | F192: =+G160 -> 33.53 | G192: /hora
B193: Lubricantes: | E193: S/= | F193: =+G168 -> 1.43 | G193: /hora
B194: Filtros: | E194: S/= | F194: =+G172 -> 6.99 | G194: /hora
B195: Grasas: | E195: S/= | F195: =+G176 -> 1.03 | G195: /hora
B196: Piezas de desgaste: | E196: S/= | F196: 0 | G196: /hora
B197: Herramientas de corte: | E197: S/= | F197: 0 | G197: /hora
B198: Neumaticos: | E198: S/= | F198: =+G184 -> 0 | G198: /hora
B199: Operador de equipo pesado: | E199: S/= | F199: =+G188 -> 18.63 | G199: /hora
B200: TOTAL COSTO HORARIO DE OPERACIÓN: | E200: S/= | F200: =SUM(F191:F199) -> 127.02 | G200: /hora
B202: CALCULO DEL COSTO HORARIO TOTAL
B204: Costo Horario del tractor D6M-XL con operador.= | F204: costo de posesión + costo de operación
B206: Costo Horario del Tractor D6M-XL con operador.= | F206: =+E89 -> S/. 126.61 | G206: + | H206: =+F200 -> S/. 127.02
B209: COSTO HORARIO DEL TRACTOR D6M-XL (CON OPERADOR)= | G209: =+F206+H206 -> S/. 253.63 | H209: /hora
B211: Nota: Este costo no incluye el Impuesto General a las Ventas (I.G.V.), gastas generales ni utilidad

Sheet Norma
